bitfinex-derivatives/quotes_SOLF0:USTF0_20250626
["timestamp","ask_amount","ask_price","bid_price","bid_amount"]
[1750942149573,10.47501961,143.17,143.14,6.983]
[1750942151478,10.47501961,143.17,143.11,3.49311961]
[1750942151872,3.49311961,143.17,143.11,3.49311961]
[1750942152971,10.47511961,143.17,143.11,3.49311961]
[1750942153474,10.47511961,143.17,143.1,35.86]
[1750942153682,10.47511961,143.17,143.1,39.35311961]
[1750942154480,6.9815,143.18,143.16,6.9823]
[1750942154677,35.86,143.19,143.12,3.49311961]
[1750942154879,35.86,143.19,143.14,3.49311961]
[1750942155077,35.86,143.19,143.17,6.9816]
[1750942155275,6.9808,143.2,143.14,39.35311961]
[1750942155475,6.9808,143.2,143.18,6.9812]
[1750942156269,6.9809,143.19,143.17,6.9815]
[1750942156472,3.49311961,143.19,143.14,4.6848]
[1750942156970,6.9821,143.17,143.14,11.6677]
[1750942157173,6.9821,143.17,143.14,4.6848]
[1750942157369,6.9823,143.16,143.14,11.6678]
[1750942157774,3.49311961,143.19,143.14,11.6678]
[1750942158581,6.9821,143.17,143.14,11.6678]
[1750942159174,6.9825,143.16,143.13,6.9835]
[1750942159475,3.49311961,143.17,143.11,39.35311961]
[1750942160183,3.49311961,143.17,143.14,6.9829]
[1750942160581,10.47511961,143.17,143.14,6.9829]
[1750942160778,3.49311961,143.19,143.11,35.86]
[1750942161078,3.49311961,143.19,143.12,3.49311961]
[1750942161280,3.49311961,143.21,143.14,3.49311961]
[1750942161782,10.47321961,143.21,143.18,6.9808]
[1750942161977,3.49311961,143.21,143.15,4.7413]
[1750942162286,10.47331961,143.21,143.15,40.6013]
[1750942162985,3.49311961,143.21,143.17,6.9815]
[1750942163286,3.49311961,143.21,143.15,40.6013]
[1750942164181,6.9811,143.19,143.16,6.9819]
[1750942165389,39.35311961,143.22,143.15,40.6013]
[1750942165991,6.9801,143.21,143.19,6.9808]
[1750942166693,639.06,143.26,143.18,3.49311961]
[1750942166891,3.49311961,143.25,143.18,3.49311961]
[1750942167386,3.49311961,143.25,143.22,6.9791]
[1750942167589,3.49311961,143.23,143.15,40.6013]
[1750942167888,3.49311961,143.21,143.15,40.6013]
[1750942168088,3.49311961,143.21,143.19,6.9804]
[1750942169190,6.9796,143.22,143.2,6.9803]
[1750942169394,6.9796,143.22,143.16,3.49311961]
[1750942169690,6.9799,143.21,143.16,3.49311961]
[1750942169992,3.49311961,143.23,143.16,3.49311961]
[1750942170195,6.9802,143.21,143.15,40.6013]
[1750942171391,6.9803,143.2,143.18,6.981]
[1750942172590,10.47321961,143.21,143.18,6.981]
[1750942172786,4.7596,143.25,143.15,40.6013]
[1750942172994,6.9794,143.22,143.15,40.6013]
[1750942173293,3.49311961,143.23,143.19,6.9806]
[1750942174097,6.9795,143.22,143.19,6.9806]
[1750942174597,4.89327404,143.21,143.19,6.9806]
[1750942174899,6.9795,143.22,143.19,6.9806]
[1750942175492,10.47221961,143.23,143.16,3.49311961]
[1750942175990,10.47221961,143.23,143.21,6.9796]
[1750942176389,6.9791,143.23,143.21,6.9796]
[1750942176594,10.47171961,143.24,143.21,6.9796]
[1750942177197,6.9789,143.23,143.21,6.9796]
[1750942178085,10.47171961,143.24,143.21,6.9796]
[1750942178493,3.49311961,143.24,143.21,6.9796]
[1750942179297,6.9791,143.23,143.2,6.98]
[1750942180605,6.9791,143.23,143.21,6.9797]
[1750942182099,3.49311961,143.24,143.2,6.9801]
[1750942183399,6.9793,143.23,143.2,6.9801]
[1750942183700,3.49311961,143.24,143.2,6.9801]
[1750942185201,6.979,143.23,143.2,6.9801]
[1750942185588,6.979,143.23,143.21,6.9798]
[1750942187998,6.979,143.23,143.2,6.98]
[1750942189805,6.9794,143.22,143.2,6.98]
[1750942190699,3.49311961,143.22,143.15,40.6013]
[1750942191106,39.27311961,143.22,143.15,40.6013]
[1750942191504,6.9806,143.2,143.15,40.6013]
[1750942192407,6.9806,143.2,143.17,6.9814]
[1750942192604,6.981,143.19,143.17,6.9814]
[1750942194803,6.981,143.19,143.16,6.982]
[1750942196207,6.981,143.19,143.17,6.9817]
[1750942196605,10.47371961,143.2,143.17,6.9817]
[1750942197902,3.49311961,143.2,143.16,6.9821]
[1750942198315,3.49311961,143.18,143.13,38.2071]
[1750942198513,6.9821,143.17,143.14,6.9828]
[1750942198711,3.49311961,143.18,143.14,6.9828]
[1750942199214,39.23311961,143.18,143.14,6.9828]
[1750942199601,6.9822,143.17,143.14,6.9828]
[1750942200416,3.49311961,143.16,143.13,6.9835]
[1750942200805,3.49311961,143.16,143.1,40.452]
[1750942201013,6.9829,143.15,143.12,6.9839]
[1750942201209,6.9829,143.15,143.1,4.712]
[1750942201719,6.9829,143.15,143.12,6.9838]
[1750942201908,10.47651961,143.14,143.12,6.9838]
[1750942202707,10.47651961,143.14,143.11,6.9845]
[1750942202708,6.984,143.13,143.11,6.9845]
[1750942203212,3.49311961,143.14,143.11,6.9845]
[1750942203412,10.47671961,143.14,143.11,6.9845]
[1750942204213,4.91789821,143.17,143.1,4.712]
[1750942204419,3.49311961,143.15,143.1,4.712]
[1750942204916,3.49311961,143.15,143.13,6.9835]
[1750942206006,10.47611961,143.15,143.12,6.984]
[1750942207213,10.47611961,143.15,143.13,6.9837]
[1750942207609,4.91613818,143.16,143.1,4.712]
[1750942207814,3.49311961,143.17,143.1,4.712]
[1750942208509,10.47521961,143.17,143.14,6.9829]
[1750942209115,10.47521961,143.17,143.1,4.712]
[1750942210121,3.49311961,143.15,143.1,4.712]
[1750942210622,3.49311961,143.13,143.1,4.712]
[1750942211222,10.47711961,143.13,143.11,6.9846]
[1750942211622,3.49311961,143.13,143.11,6.9846]
[1750942211821,10.47691961,143.13,143.11,6.9846]
[1750942212022,3.49311961,143.13,143.11,6.9846]
[1750942212218,3.49311961,143.13,143.05,35.76]
[1750942212524,3.49311961,143.1,143.05,35.76]
[1750942213316,3.49311961,143.1,143.07,6.9863]
[1750942214124,10.47841961,143.1,143.07,6.9863]
[1750942214620,10.47841961,143.1,143.08,6.9861]
[1750942214924,10.47841961,143.1,143.04,7.0925]
[1750942215120,6.9857,143.09,143.06,6.9869]
[1750942215314,3.49311961,143.08,143.06,6.9869]
[1750942215514,3.49311961,143.08,143.04,7.0925]
[1750942215720,10.47951961,143.08,143.05,6.9874]
[1750942218218,6.987,143.07,143.04,11.6964]
[1750942218421,3.49311961,143.06,143.04,9.3762]
[1750942218620,3.49311961,143.06,143.0,35.76]
[1750942218920,10.48051961,143.06,143.0,38.1205]
[1750942219322,10.48051961,143.06,143.03,6.9886]
[1750942220422,46.24051961,143.06,143.03,6.9886]
[1750942220830,39.25311961,143.06,143.03,6.9886]
[1750942221224,39.25311961,143.06,143.02,6.9889]
[1750942221528,6.9879,143.05,143.02,6.9889]
[1750942221732,3.49311961,143.04,143.01,6.9894]
[1750942221926,3.49311961,143.02,142.95,39.27311961]
[1750942222128,3.49311961,143.02,142.96,2.3684]
[1750942222921,10.48251961,143.02,142.99,6.9905]
[1750942223328,3.49311961,143.02,142.98,6.991]
[1750942223631,39.27311961,143.02,142.96,2.3684]
[1750942223832,39.27311961,143.02,142.93,3.49311961]
[1750942224030,35.78,143.02,142.89,35.78]
[1750942224243,35.78,143.02,142.9,17.48311961]
[1750942224430,35.78,143.02,142.96,6.9918]
[1750942225331,35.78,143.02,142.97,6.9914]
[1750942225524,2.3258,143.06,142.93,35.78]
[1750942225730,35.78,143.05,142.94,7.1836]
[1750942226135,6.9889,143.03,142.94,7.1836]
[1750942226730,6.9889,143.03,143.0,6.9898]
[1750942226926,6.9889,143.03,142.94,7.1836]
[1750942227130,35.78,143.05,142.94,7.1836]
[1750942227837,6.9881,143.04,142.94,7.1836]
[1750942228131,42.7678,143.05,142.94,7.1836]
[1750942228534,35.78,143.05,142.94,7.1836]
[1750942229039,35.78,143.05,143.04,6.9881]
[1750942232945,639.46,143.08,143.04,6.9881]
[1750942233338,6.9875,143.06,143.04,6.9881]
[1750942233537,6.9875,143.06,143.03,6.9882]
[1750942233948,639.46,143.08,142.96,35.94]
[1750942234333,6.9883,143.04,142.96,35.94]
[1750942234537,35.94,143.04,142.96,35.94]
[1750942234734,35.94,143.04,143.0,6.9898]
[1750942235038,35.94,143.04,142.96,35.94]
[1750942235239,35.94,143.04,143.01,6.9893]
[1750942235541,35.94,143.04,142.96,35.94]
[1750942235743,35.94,143.04,142.99,6.9903]
[1750942235944,6.9893,143.02,142.99,6.9903]
[1750942236248,6.9893,143.02,142.96,35.94]
[1750942236444,6.9887,143.03,143.0,6.9898]
[1750942236646,6.9887,143.03,142.96,35.94]
[1750942236852,6.9887,143.03,143.0,6.9898]
[1750942237149,35.94,143.04,142.96,35.94]
[1750942237541,6.9895,143.02,142.99,6.9902]
[1750942238650,6.9888,143.03,143.0,6.9898]
[1750942239148,42.9283,143.04,143.01,6.9895]
[1750942239536,6.9887,143.03,143.0,6.9898]
[1750942239843,6.9887,143.03,142.96,35.94]
[1750942239844,35.94,143.04,142.96,35.94]
[1750942240150,42.9284,143.04,143.01,6.9894]
[1750942240849,35.94,143.07,142.96,35.94]
[1750942241252,35.94,143.1,142.96,35.94]
[1750942241443,35.94,143.1,143.05,6.9873]
[1750942241851,6.9864,143.08,143.05,6.9873]
[1750942242454,35.94,143.1,142.99,35.94]
[1750942242951,6.9875,143.06,143.03,6.9883]
[1750942243152,35.94,143.1,143.0,2.4628]
[1750942244044,35.94,143.1,143.0,4.9224]
[1750942244243,6.9869,143.07,143.04,6.988]
[1750942245653,6.9872,143.06,143.03,6.9884]
[1750942246155,6.9877,143.05,143.03,6.9884]
[1750942246348,35.94,143.05,143.0,2.4628]
[1750942247145,6.9883,143.04,143.01,6.9891]
[1750942247949,6.9886,143.03,143.01,6.9891]
[1750942248253,6.9886,143.03,143.0,6.9898]
[1750942248842,35.94,143.05,142.96,38.3061]
[1750942249360,6.9884,143.04,143.01,6.9893]
[1750942249656,35.94,143.05,143.01,6.9893]
[1750942249956,6.9887,143.03,143.01,6.9893]
[1750942250148,6.9887,143.03,142.96,38.3061]
[1750942250349,6.9889,143.03,142.96,38.3061]
[1750942250644,35.94,143.05,142.96,38.3061]
[1750942251150,6.9889,143.03,142.96,38.3061]
[1750942251652,6.9889,143.03,143.0,6.9897]
[1750942252048,6.9891,143.02,143.0,6.9897]
[1750942253157,6.9891,143.02,142.96,38.3061]
[1750942253361,35.94,143.05,142.96,38.3061]
[1750942254060,6.9894,143.02,142.96,38.3061]
[1750942254265,6.9894,143.02,142.99,6.9906]
[1750942254554,6.9894,143.02,142.96,2.3661]
[1750942254747,35.94,143.05,142.96,2.3661]
[1750942254748,6.9892,143.03,142.96,2.3661]
[1750942254952,6.9892,143.03,143.0,6.9901]
[1750942255153,6.9894,143.02,143.0,6.9901]
[1750942255760,6.9891,143.03,143.0,6.9901]
[1750942256160,35.94,143.05,143.0,6.9901]
[1750942256365,6.9889,143.03,143.0,6.9901]
[1750942256664,35.94,143.05,142.96,2.3661]
[1750942256960,35.94,143.05,142.96,16.3499]
[1750942258354,35.94,143.05,143.03,6.9884]
[1750942258554,35.94,143.05,142.96,16.3499]
[1750942258954,42.9278,143.05,143.02,6.9887]
[1750942259260,42.9278,143.05,142.96,16.3499]
[1750942259459,6.9883,143.04,143.01,6.9893]
[1750942260460,35.94,143.05,142.96,2.3661]
[1750942261062,6.9898,143.01,142.98,6.9908]
[1750942261263,6.9898,143.01,142.96,2.3661]
[1750942261565,43.0838,143.05,142.96,2.3661]
[1750942261771,43.0838,143.05,142.98,6.991]
[1750942261966,43.0838,143.05,142.96,2.3661]
[1750942262258,47.14291368,143.05,142.95,38.3336]
[1750942262464,43.0838,143.05,142.95,38.3336]
[1750942262666,47.14291368,143.05,142.95,38.3336]
[1750942263069,6.9895,143.02,142.98,6.9907]
[1750942263269,6.9895,143.02,142.95,38.3336]
[1750942263663,6.9895,143.02,142.99,6.9905]
[1750942263964,6.9889,143.03,142.95,38.3336]
[1750942264167,6.9889,143.03,143.0,6.9898]
[1750942264665,6.9889,143.03,142.95,38.3336]
[1750942265667,6.9889,143.03,143.01,6.9893]
[1750942266068,6.9889,143.03,143.0,6.9898]
[1750942266361,43.0838,143.05,142.95,38.3336]
[1750942266765,6.9897,143.01,142.98,6.9908]
[1750942266970,6.9897,143.01,142.95,35.94]
[1750942266971,36.52,143.01,142.95,35.94]
[1750942267162,36.52,143.01,142.93,2.2731]
[1750942267366,36.52,143.01,142.97,6.9913]
[1750942267962,36.52,143.01,142.98,6.9909]
[1750942268470,36.52,143.01,142.97,6.9913]
[1750942268672,36.52,143.01,142.93,2.2731]
[1750942268969,36.52,143.01,142.98,6.9908]
[1750942269566,36.52,143.01,142.93,2.2731]
[1750942269767,36.52,143.01,142.94,13.986]
[1750942269966,36.52,143.01,142.94,22.63473651]
[1750942270168,36.52,143.01,142.94,13.986]
[1750942271876,36.52,143.01,142.99,6.9901]
[1750942272675,36.52,143.01,143.0,6.9901]
[1750942275076,36.52,143.01,142.99,6.9902]
[1750942275672,43.5098,143.01,142.99,6.9902]
[1750942275980,36.52,143.01,142.93,2.2731]
[1750942276380,36.52,143.01,142.96,6.9916]
[1750942276980,36.52,143.01,142.97,6.9915]
[1750942278078,36.52,143.01,142.93,2.2731]
[1750942278283,36.52,143.01,142.98,6.991]
[1750942282687,36.52,143.01,142.99,6.9905]
[1750942282888,36.52,143.01,142.93,16.2599]
[1750942283187,36.52,143.01,143.0,6.9901]
[1750942284983,36.52,143.01,142.99,6.9903]
[1750942285585,36.52,143.01,143.0,6.9901]
[1750942287687,36.24,143.05,143.02,6.9889]
[1750942287989,36.24,143.05,142.96,36.24]
[1750942288188,6.9886,143.03,142.97,2.4041]
[1750942288389,6.9886,143.03,143.01,6.9893]
[1750942289492,6.9884,143.04,143.01,6.9893]
[1750942290492,6.9884,143.04,143.02,6.989]
[1750942290694,36.24,143.05,142.98,2.2757]
[1750942291192,6.9889,143.03,142.98,2.2757]
[1750942291794,6.9889,143.03,143.01,6.9893]
[1750942292182,6.9884,143.04,142.99,6.9902]
[1750942292392,6.9884,143.04,142.98,2.2757]
[1750942292986,6.9884,143.04,143.02,6.9887]
[1750942293193,43.2278,143.05,142.98,2.2757]
[1750942295193,40.28892707,143.05,142.98,2.2757]
[1750942296191,6.9887,143.03,143.0,6.99]
[1750942296396,40.28892707,143.05,143.0,6.99]
[1750942296594,6.9889,143.03,143.01,6.9896]
[1750942296790,40.28892707,143.05,142.98,2.2757]
[1750942297188,6.9883,143.04,143.01,6.9891]
[1750942297998,6.9883,143.04,143.02,6.989]
[1750942298590,6.9883,143.04,143.01,6.9893]
[1750942299500,6.9887,143.03,143.01,6.9893]
[1750942299803,40.28892707,143.05,143.01,6.9893]
[1750942300300,6.9883,143.04,143.01,6.9893]
[1750942300601,6.9883,143.04,142.98,2.2757]
[1750942301301,6.9883,143.04,143.01,6.9893]
[1750942302102,6.9883,143.04,143.02,6.989]
[1750942302399,6.9883,143.04,142.98,2.2757]
[1750942302800,6.9883,143.04,143.01,6.9893]
[1750942303403,6.9888,143.03,143.01,6.9893]
[1750942305702,6.9888,143.03,143.0,6.9898]
[1750942306712,6.9888,143.03,143.01,6.9895]
[1750942307800,6.9888,143.03,142.98,2.2757]
[1750942307801,6.9884,143.04,142.98,2.2757]
[1750942308204,6.9884,143.04,143.01,6.9892]
[1750942308406,6.9884,143.04,142.98,2.2757]
[1750942308901,47.27682707,143.05,143.02,6.989]
[1750942309209,40.28892707,143.05,143.02,6.989]
[1750942309412,6.9882,143.04,143.02,6.989]
[1750942309909,40.28892707,143.05,143.02,6.989]
[1750942310211,47.27692707,143.05,143.02,6.989]
[1750942311216,6.9893,143.02,142.96,38.7368]
[1750942311412,6.9893,143.02,142.96,41.0639]
[1750942311808,6.9893,143.02,142.99,6.9903]
[1750942312315,6.9889,143.03,143.0,6.9898]
[1750942313314,40.28892707,143.05,142.99,6.9903]
[1750942313612,4.04892707,143.04,142.99,6.9903]
[1750942314003,6.9898,143.01,142.99,6.9903]
[1750942315222,6.9898,143.01,142.98,6.9908]
[1750942315522,36.22,143.01,142.98,6.9908]
[1750942316123,43.2098,143.01,142.98,6.9908]
[1750942317012,43.2098,143.01,142.99,6.9905]
[1750942319022,43.2098,143.01,142.98,6.9908]
[1750942320019,43.2098,143.01,142.99,6.9905]
[1750942320225,36.22,143.01,142.99,6.9905]
[1750942320724,36.22,143.01,143.0,6.9901]
[1750942320930,36.22,143.01,142.96,4.8239]
[1750942321529,36.22,143.01,143.0,6.9901]
[1750942323825,36.22,143.01,142.99,6.9904]
[1750942324331,43.2099,143.01,142.96,4.8239]
[1750942324530,43.2099,143.01,142.96,2.3271]
[1750942324827,36.22,143.01,142.92,8.64873651]
[1750942325039,36.22,143.01,142.91,8.64873651]
[1750942325225,36.22,143.01,142.9,63.32353651]
[1750942325822,36.22,143.01,142.9,8.64873651]
[1750942326030,6.51922707,143.0,142.86,8.64873651]
[1750942326224,141.18892707,142.99,142.86,8.64873651]
[1750942326426,141.842,142.99,142.86,44.66873651]
[1750942326628,36.02,142.99,142.88,8.64873651]
[1750942326827,43.0106,142.99,142.96,6.9916]
[1750942327535,36.02,142.99,142.97,6.9913]
[1750942327931,4.89096323,142.98,142.97,6.9913]
[1750942328631,4.05595122,143.01,142.99,6.9905]
[1750942328833,8.94573463,143.0,142.99,6.9905]
[1750942329936,4.88978341,143.0,142.99,6.9905]
[1750942330437,4.34731862,143.02,143.01,6.9896]
[1750942330736,4.88885202,143.02,142.96,36.02]
[1750942330937,4.34835142,143.03,142.97,7.2226]
[1750942331240,4.88961023,143.02,142.97,7.2226]
[1750942331536,4.34835142,143.03,142.97,7.2226]
[1750942331738,36.02,143.05,142.97,7.2226]
[1750942331739,4.89057807,143.02,143.01,6.9896]
[1750942331935,36.02,143.05,142.97,7.2226]
[1750942332136,4.86084792,143.04,142.97,7.2226]
[1750942332341,36.02,143.05,143.03,6.9885]
[1750942332535,4.86061069,143.04,143.03,6.9885]
[1750942333236,4.86095592,143.04,143.03,6.9885]
[1750942334442,36.02,143.05,143.03,6.9885]
[1750942334842,4.90406856,143.04,143.03,6.9885]
[1750942335741,4.90406856,143.04,143.02,6.9888]
[1750942335944,43.0076,143.05,143.02,6.9888]
[1750942336142,11.89258421,143.04,143.0,6.9896]
[1750942336444,11.38067331,143.04,142.97,7.2226]
[1750942336935,11.38067331,143.04,143.01,6.9894]
[1750942337532,4.90417603,143.03,143.01,6.9894]
[1750942337746,6.9885,143.04,143.0,6.9897]
[1750942337947,4.90417603,143.03,142.97,7.2226]
[1750942338139,6.9885,143.04,142.97,7.2226]
[1750942338339,4.91643962,143.03,143.01,6.9893]
[1750942338542,6.9885,143.04,143.01,6.9893]
[1750942338751,4.9165678,143.03,143.01,6.9893]
[1750942339041,6.9885,143.04,143.01,6.9893]
[1750942339247,4.9165678,143.03,143.01,6.9893]
[1750942339439,6.9885,143.04,143.01,6.9893]
[1750942339641,9.30328539,143.03,143.01,6.9893]
[1750942339846,4.38626739,143.03,143.01,6.9893]
[1750942341052,11.37496739,143.03,143.01,6.9893]
[1750942341251,6.9887,143.03,143.0,6.9898]
[1750942341447,9.30292724,143.02,142.97,4.726]
[1750942341649,9.3021811,143.01,142.95,36.02]
[1750942341851,4.91665985,143.0,142.95,36.02]
[1750942342044,4.91665985,142.99,142.93,6.9582]
[1750942342243,4.91763512,143.0,142.93,6.9582]
[1750942342444,36.02,143.01,142.99,6.9903]
[1750942342640,4.91805494,143.0,142.99,6.9903]
[1750942343252,4.91805494,143.0,142.98,6.9909]
[1750942343554,43.0098,143.01,142.98,6.9909]
[1750942343851,4.89945871,143.0,142.98,6.9909]
[1750942344051,43.0098,143.01,142.98,6.9909]
[1750942344254,4.89934338,143.0,142.98,6.9909]
[1750942344445,43.0098,143.01,142.98,6.9909]
[1750942344644,4.89925865,143.0,142.98,6.9909]
[1750942344839,43.0098,143.01,142.98,6.9909]
[1750942345045,4.89925865,143.0,142.98,6.9909]
[1750942345246,6.9901,143.0,142.97,6.9913]
[1750942345448,4.89857745,142.99,142.97,6.9913]
[1750942345642,36.02,143.01,142.93,6.9582]
[1750942345843,9.27269885,143.0,142.93,6.9582]
[1750942346052,16.26335722,142.99,142.95,6.9922]
[1750942346348,6.9909,142.99,142.93,6.9582]
[1750942346547,11.36471783,142.99,142.93,6.9582]
[1750942346747,6.9909,142.99,142.93,6.9582]
[1750942346947,11.36471783,142.99,142.93,6.9582]
[1750942347149,6.9909,142.99,142.93,6.9582]
[1750942347348,36.02,143.01,142.93,6.9582]
[1750942347644,9.26958007,143.0,142.93,6.9582]
[1750942347955,9.26958007,142.99,142.94,6.9926]
[1750942348146,9.26958007,142.98,142.94,6.9926]
[1750942348346,47.89581684,142.97,142.94,6.9926]
[1750942348552,43.0118,142.97,142.94,6.9926]
[1750942349253,47.89452544,142.97,142.94,6.9926]
[1750942349450,36.02,142.97,142.88,8.64873651]
[1750942349650,36.02,142.97,142.84,13.9954]
[1750942349651,138.88,142.96,142.85,8.64873651]
[1750942349854,4.88386014,142.95,142.81,15.76133651]
[1750942350044,6.9948,142.91,142.81,15.76133651]
[1750942350248,44.0948,142.91,142.81,7.1126]
[1750942350661,37.1,142.91,142.83,6.51965449]
[1750942350954,37.1,142.91,142.85,6.51965449]
[1750942351148,37.1,142.94,142.85,6.51965449]
[1750942351346,4.8766695,142.93,142.86,6.51965449]
[1750942351544,4.8766695,142.93,142.87,7.1306]
[1750942351753,4.8766695,142.93,142.91,6.994]
[1750942351960,4.8766695,142.93,142.87,7.1306]
[1750942352257,4.8766695,142.93,142.92,6.994]
[1750942352456,41.9766695,142.94,142.92,6.994]
[1750942353161,37.1,142.94,142.9,6.9947]
[1750942353359,46.29988644,142.94,142.84,37.1]
[1750942353556,4.8714768,142.93,142.84,43.61965449]
[1750942353863,41.9714768,142.94,142.84,43.61965449]
[1750942354053,41.9714768,142.94,142.84,6.51965449]
[1750942354360,6.9936,142.93,142.83,43.63965449]
[1750942354555,46.29988644,142.94,142.83,43.63965449]
[1750942354754,41.9714768,142.94,142.83,37.12]
[1750942355150,41.9714768,142.94,142.83,43.63965449]
[1750942355360,6.9939,142.92,142.88,6.9953]
[1750942355568,37.1,142.94,142.88,6.9953]
[1750942355858,37.1,142.94,142.83,37.12]
[1750942356060,6.9946,142.91,142.88,6.9957]
[1750942356263,37.12,142.9,142.83,37.12]
[1750942356459,37.12,142.9,142.88,6.9955]
[1750942356860,37.12,142.9,142.83,37.12]
[1750942357057,37.12,142.9,142.88,6.9955]
[1750942357356,37.12,142.9,142.83,37.12]
[1750942357761,37.12,142.9,142.87,6.996]
[1750942359057,37.12,142.9,142.88,6.9956]
[1750942359257,37.12,142.9,142.83,37.12]
[1750942359864,37.12,142.9,142.88,6.9956]
[1750942360060,37.12,142.9,142.83,37.12]
[1750942360961,37.12,142.9,142.89,6.9953]
[1750942363867,37.12,142.93,142.91,6.9941]
[1750942364066,37.12,142.93,142.84,6.51965449]
[1750942364467,44.1135,142.93,142.9,6.9944]
[1750942364768,37.12,142.93,142.9,6.9944]
[1750942365061,6.9941,142.92,142.89,6.9951]
[1750942365262,37.12,142.93,142.89,6.9951]
[1750942365564,6.9943,142.92,142.89,6.9951]
[1750942365760,6.9943,142.92,142.83,37.12]
[1750942365761,37.12,142.93,142.83,37.12]
[1750942365956,6.9951,142.9,142.83,37.12]
[1750942366265,6.9951,142.9,142.87,6.996]
[1750942366562,6.9956,142.89,142.83,37.12]
[1750942366953,37.12,142.93,142.83,37.12]
[1750942366954,37.12,142.93,142.87,6.9961]
[1750942367256,6.9953,142.89,142.87,6.9961]
[1750942367963,6.995,142.9,142.87,6.9961]
[1750942368869,6.9953,142.89,142.86,6.9965]
[1750942369166,37.12,142.89,142.83,37.12]
[1750942369364,37.12,142.89,142.88,6.9958]
[1750942370459,37.12,142.89,142.87,6.996]
[1750942371067,37.12,142.89,142.88,6.9958]
[1750942375962,44.1141,142.92,142.89,6.9951]
[1750942376868,2.4279,142.95,142.84,13.9952]
[1750942377073,37.12,142.94,142.83,37.12]
[1750942377366,37.12,142.94,142.83,43.63965449]
[1750942377768,44.1131,142.94,142.91,6.994]
[1750942378077,44.1131,142.94,142.85,13.9945]
[1750942378272,37.12,142.94,142.86,2.3003]
[1750942378464,37.12,142.94,142.92,6.9938]
[1750942379160,37.12,142.94,142.87,41.6773]
[1750942379661,37.12,142.94,142.92,6.9935]
[1750942380162,37.12,142.94,142.87,41.6773]
[1750942380970,6.9937,142.93,142.9,6.9945]
[1750942381564,6.9936,142.93,142.9,6.9948]
[1750942381770,2.3706,142.96,142.87,4.5573]
[1750942382169,6.9934,142.93,142.9,6.9945]
[1750942382980,44.2934,142.93,142.9,6.9945]
[1750942383275,37.3,142.93,142.9,6.9945]
[1750942383568,44.2936,142.93,142.9,6.9945]
[1750942383775,37.3,142.93,142.9,6.9945]
[1750942384275,44.2936,142.93,142.9,6.9945]
[1750942384971,44.2936,142.93,142.87,4.5573]
[1750942384972,37.3,142.93,142.87,4.5573]
[1750942385579,44.2934,142.93,142.9,6.9946]
[1750942386170,37.3,142.93,142.87,4.5573]
[1750942386773,37.3,142.93,142.91,6.9941]
[1750942387068,37.3,142.93,142.87,4.5573]
[1750942387275,37.3,142.93,142.91,6.994]
[1750942387476,44.2934,142.93,142.87,4.5573]
[1750942387879,37.3,142.93,142.87,4.5573]
[1750942388377,4.28651468,142.95,142.9,6.9945]
[1750942388575,6.9937,142.93,142.9,6.9945]
[1750942389476,44.2937,142.93,142.9,6.9945]
[1750942390481,37.3,142.93,142.9,6.9945]
[1750942390779,41.58651468,142.93,142.9,6.9945]
[1750942390981,37.3,142.93,142.9,6.9945]
[1750942391271,44.2936,142.93,142.87,4.5573]
[1750942391478,44.2936,142.93,142.87,11.07695449]
[1750942391867,48.65409398,142.93,142.87,11.07695449]